fUST/lending_fUST_20250720
["ID","MTS","AMOUNT","RATE_DAILY","PERIOD"]
[373463266,1753017046787,-460.0,0.00017065,2]
[373463268,1753017046796,-460.0,0.00017065,2]
[373463270,1753017046806,-460.0,0.00017065,2]
[373463272,1753017046817,-460.0,0.00017065,2]
[373463274,1753017046827,-460.0,0.00017065,2]
[373463276,1753017046837,-460.0,0.00017065,2]
[373463278,1753017046847,-460.0,0.00017065,2]
[373463280,1753017046857,-460.0,0.00017065,2]
[373463282,1753017046866,-460.0,0.00017065,2]
[373463284,1753017046877,-460.0,0.00017065,2]
[373463286,1753017046886,-460.0,0.00017065,2]
[373463288,1753017046895,-460.0,0.00017065,2]
[373463290,1753017046904,-460.0,0.00017065,2]
[373463292,1753017046914,-2678.18,0.00017065,2]
[373463294,1753017046924,-460.0,0.00017065,2]
[373463296,1753017046933,-460.0,0.00017065,2]
[373463298,1753017046942,-460.0,0.00017065,2]
[373463300,1753017046952,-460.0,0.00017065,2]
[373463302,1753017046961,-460.0,0.00017065,2]
[373463304,1753017046971,-460.0,0.00017065,2]
[373463306,1753017046980,-460.0,0.00017065,2]
[373463308,1753017046990,-290.9357974,0.00017065,2]
[373463310,1753017046999,-460.0,0.00017065,2]
[373463312,1753017047008,-460.0,0.00017065,2]
[373463314,1753017047017,-460.0,0.00017065,2]
[373463316,1753017047026,-460.0,0.00017065,2]
[373463318,1753017047037,-286.61207096,0.00017065,2]
[373463320,1753017047047,-460.0,0.00017065,2]
[373463322,1753017047057,-460.0,0.00017065,2]
[373463324,1753017047066,-449.59435915,0.00017065,2]
[373463326,1753017047076,-460.0,0.00017066,2]
[373463327,1753017047085,-460.0,0.00017066,2]
[373463328,1753017047094,-460.0,0.00017066,2]
[373463329,1753017047102,-460.0,0.00017066,2]
[373463330,1753017047111,-460.0,0.00017066,2]
[373463331,1753017047120,-151.0,0.00017066,2]
[373463332,1753017047129,-460.0,0.00017066,2]
[373463333,1753017047138,-477.8,0.00017066,2]
[373463343,1753017047224,-460.0,0.00017066,2]
[373463346,1753017047244,-460.0,0.00017066,2]
[373463348,1753017047254,-460.0,0.00017066,2]
[373463350,1753017047264,-460.0,0.00017066,2]
[373463352,1753017047273,-460.0,0.00017066,2]
[373463354,1753017047282,-287.50800003,0.00017066,2]
[373463356,1753017047291,-460.0,0.00017066,2]
[373463358,1753017047301,-460.0,0.00017066,2]
[373463359,1753017047311,-460.0,0.00017066,2]
[373463362,1753017047321,-460.0,0.00017066,2]
[373463364,1753017047330,-460.0,0.00017066,2]
[373463366,1753017047339,-151.0,0.00017066,2]
[373463368,1753017047348,-151.0,0.00017066,2]
[373463369,1753017047358,-460.0,0.00017066,2]
[373463372,1753017047368,-460.0,0.00017066,2]
[373463374,1753017047377,-460.0,0.00017066,2]
[373463376,1753017047387,-460.0,0.00017066,2]
[373463377,1753017047396,-500.0,0.00017066,2]
[373463379,1753017047406,-460.0,0.00017066,2]
[373463381,1753017047415,-460.0,0.00017067,2]
[373463383,1753017047424,-460.0,0.00017067,2]
[373463386,1753017047434,-460.0,0.00017067,2]
[373463387,1753017047443,-460.0,0.00017067,2]
[373463390,1753017047453,-460.0,0.00017067,2]
[373463392,1753017047463,-460.0,0.00017067,2]
[373463394,1753017047472,-433.52568215,0.00017067,2]
[373463396,1753017047482,-460.0,0.00017067,2]
[373463398,1753017047491,-460.0,0.00017067,2]
[373463399,1753017047500,-460.0,0.00017067,2]
[373463402,1753017047509,-469.46,0.00017067,2]
[373463404,1753017047521,-916.74,0.00017067,2]
[373463406,1753017047530,-460.0,0.00017067,2]
[373463408,1753017047539,-460.0,0.00017067,2]
[373463410,1753017047547,-749570.21303342,0.0001707,2]
[373463421,1753017047648,-4822.5,0.0001707,2]
[373463440,1753017047820,-460.0,0.00016516,2]
[373463442,1753017047830,-460.0,0.00016518,2]
[373463444,1753017047840,-460.0,0.0001679,2]
[373463446,1753017047849,-54.80754,0.00016792,2]
[373463477,1753017048140,5000.0,0.000164,2]
[373463555,1753017048868,-460.0,0.00016516,2]
[373463557,1753017048877,-357.27124642,0.00016517,2]
[373464252,1753017055885,161.7,0.00015423,2]
[373464294,1753017056299,242.55,0.00016124,2]
[373464849,1753017062149,5000.0,0.000164,2]
[373465074,1753017064494,173.25,0.00021819,30]
[373465103,1753017064917,207.9,0.00022692,30]
[373466352,1753017078289,5000.0,0.000164,2]
[373467828,1753017093602,5000.0,0.000164,2]
[373468364,1753017099772,8404.081181,0.00015517,2]
[373468366,1753017099796,16495.918819,0.00015517,2]
[373469180,1753017108991,5000.0,0.000164,2]
[373469686,1753017125082,4466.50846265,0.000164,2]
[373469687,1753017136870,212.56,0.0001612,2]
[373469688,1753017142383,151.83,0.00020405,30]
[373469689,1753017142808,182.2,0.00021221,30]
[373469690,1753017143225,212.56,0.00022037,30]
[373469691,1753017143658,242.93,0.00022853,30]
[373469692,1753017148447,170.6848801,0.00015624,2]
[373469693,1753017150058,3654.32783825,0.00016337,2]
[373469694,1753017150083,4059.29343311,0.00016337,2]
[373469719,1753017215078,174.3,0.00016234,2]
[373469720,1753017220440,174.3,0.00022047,30]
[373469721,1753017220899,199.2,0.00022864,30]
[373469722,1753017231406,-300.0,0.00016415,2]
[373469723,1753017231437,-500.0,0.00016416,2]
[373469724,1753017231467,-274.57174274,0.00016416,2]
[373469725,1753017231498,-531.13618883,0.00016416,2]
[373469726,1753017231528,-500.0,0.00016416,2]
[373469727,1753017231557,-500.0,0.00016416,2]
[373469728,1753017231588,-500.0,0.00016416,2]
[373469729,1753017231617,-500.0,0.00016416,2]
[373469730,1753017231648,-500.0,0.00016416,2]
[373469731,1753017231677,-500.0,0.00016416,2]
[373469732,1753017231937,-1277.79695528,0.00016416,2]
[373469733,1753017233690,-8990.05931049,0.00016417,2]
[373469734,1753017233960,-10000.0,0.00016417,2]
[373469735,1753017234223,-10000.0,0.00016417,2]
[373469736,1753017234520,-10000.0,0.00016417,2]
[373469737,1753017234794,-10000.0,0.00016417,2]
[373469738,1753017235065,-10000.0,0.00016417,2]
[373469739,1753017235338,-10000.0,0.00016417,2]
[373469740,1753017235621,-10000.0,0.00016417,2]
[373469741,1753017235879,-10000.0,0.00016417,2]
[373469742,1753017236127,-10000.0,0.00016417,2]
[373469743,1753017236390,-10000.0,0.00016417,2]
[373469744,1753017236625,-10000.0,0.00016417,2]
[373469745,1753017236872,-10000.0,0.00016417,2]
[373469746,1753017237118,-10000.0,0.00016417,2]
[373469747,1753017237367,-10000.0,0.00016417,2]
[373469748,1753017237617,-10000.0,0.00016417,2]
[373469749,1753017237875,-10000.0,0.00016417,2]
[373469750,1753017238117,-10000.0,0.00016417,2]
[373469751,1753017238494,-10000.0,0.00016417,2]
[373469752,1753017238754,-10000.0,0.00016417,2]
[373469753,1753017239059,-10000.0,0.00016417,2]
[373469754,1753017239354,-10000.0,0.00016417,2]
[373469755,1753017239621,-10000.0,0.00016417,2]
[373469756,1753017239914,-10000.0,0.00016417,2]
[373469757,1753017240205,-10000.0,0.00016417,2]
[373469758,1753017240476,-10000.0,0.00016417,2]
[373469759,1753017240727,-10000.0,0.00016417,2]
[373469760,1753017241025,-10000.0,0.00016417,2]
[373469761,1753017241300,-10000.0,0.00016417,2]
[373469762,1753017241626,-10000.0,0.00016417,2]
[373469763,1753017241926,-10000.0,0.00016417,2]
[373469764,1753017242357,-10000.0,0.00016417,2]
[373469765,1753017242538,-10000.0,0.00016417,2]
[373469766,1753017242800,-10000.0,0.00016417,2]
[373469767,1753017243045,-10000.0,0.00016417,2]
[373469768,1753017243304,-10000.0,0.00016417,2]
[373469769,1753017243680,-300.0,0.00016416,2]
[373469770,1753017243760,-9400.0,0.00016417,2]
[373469771,1753017243912,-1609.94068951,0.00016417,2]
[373469772,1753017243944,-460.0,0.00016438,2]
[373469773,1753017243978,-460.0,0.00016438,2]
[373469774,1753017244013,-460.0,0.00016438,2]
[373469775,1753017244045,-460.0,0.00016438,2]
[373469776,1753017244077,-460.0,0.00016438,2]
[373469777,1753017244109,-460.0,0.00016438,2]
[373469778,1753017244143,-460.0,0.00016438,2]
[373469779,1753017244311,-340.11862098,0.00016438,2]
[373469780,1753017244347,-119.88137902,0.00016438,2]
[373469781,1753017244379,-460.0,0.00016438,2]
[373469782,1753017244413,-564.43,0.00016438,2]
[373469783,1753017244451,-500.0,0.00016438,2]
[373469784,1753017244482,-500.0,0.00016438,2]
[373469785,1753017244512,-500.0,0.00016438,2]
[373469786,1753017244544,-170.0,0.00016438,2]
[373469787,1753017244665,-460.0,0.00016438,2]
[373469788,1753017244723,-500.0,0.00016438,2]
[373469789,1753017244755,-500.0,0.00016438,2]
[373469790,1753017244786,-500.0,0.00016438,2]
[373469791,1753017244957,-500.0,0.00016438,2]
[373469792,1753017244988,-460.0,0.00016438,2]
[373469793,1753017245019,-460.0,0.00016438,2]
[373469794,1753017245049,-460.0,0.00016438,2]
[373469795,1753017252221,460.0,0.00016438,2]
[373469797,1753017260841,460.0,0.00016438,2]
[373469798,1753017264409,461.91978592,0.00016438,2]
[373469799,1753017266082,267.35024469,0.0001602,2]
[373469800,1753017266213,950.78,0.00016438,2]
[373469801,1753017271941,460.0,0.00016438,2]
[373469802,1753017281781,460.0,0.00016438,2]
[373469803,1753017282830,460.0,0.00016438,2]
[373469804,1753017288355,460.0,0.00016438,2]
[373469805,1753017291551,153.39,0.00016237,2]
[373469806,1753017294892,460.0,0.00016438,2]
[373469807,1753017297509,153.39,0.00021999,30]
[373469808,1753017298147,175.3,0.00022813,30]
[373469809,1753017298998,460.0,0.00016438,2]
[373469810,1753017300483,460.0,0.00016438,2]
[373469811,1753017302948,266.55996939,0.00016438,2]
[373469812,1753017302972,193.44003061,0.00016438,2]
[373469813,1753017311352,460.0,0.00016438,2]
[373469814,1753017313764,460.0,0.00016438,2]
[373469815,1753017317068,460.0,0.00016438,2]
[373469816,1753017318958,858.93,0.00016438,2]
[373469817,1753017322658,460.0,0.00016438,2]
[373469818,1753017324415,7107.62996939,0.00015515,2]
[373469819,1753017324439,2892.37003061,0.00015515,2]
[373469820,1753017327135,460.0,0.00016438,2]
[373469821,1753017330879,460.0,0.00016438,2]
[373469822,1753017334373,1118.07233587,0.00016415,2]
[373469823,1753017335605,460.0,0.00016438,2]
[373469824,1753017342141,460.0,0.00016438,2]
[373469825,1753017343789,502.94281649,0.00016438,2]
[373469827,1753017351047,460.0,0.00016438,2]
[373469828,1753017354321,460.0,0.00016438,2]
[373469829,1753017357783,460.0,0.00016438,2]
[373469830,1753017358203,460.0,0.00016438,2]
[373469831,1753017361147,460.0,0.00016438,2]
[373469832,1753017363385,460.0,0.00016438,2]
[373469833,1753017369421,462.85288859,0.00016438,2]
[373469834,1753017371139,423.76192844,0.00016438,2]
[373469916,1753017438363,155.44996916,7.5e-07,2]
[373469917,1753017438474,155.44996916,7.5e-07,2]
[373469918,1753017438633,155.44996916,7.5e-07,2]
[373469919,1753017438750,155.44996916,7.5e-07,2]
[373469920,1753017438955,155.44996916,7.5e-07,2]
[373469921,1753017439068,155.44996916,7.5e-07,2]
[373469922,1753017439203,155.44996916,7.5e-07,2]
[373469923,1753017439395,155.44996916,7.5e-07,2]
[373469924,1753017445431,165.609528,0.00015514,2]
[373469925,1753017445633,165.609528,0.00015669,2]
[373469926,1753017525470,978.31329393,0.00016338,2]
[373469927,1753017536593,18525.488861,0.00015488,2]
[373469928,1753017553466,193.12187039,0.00016356,2]
[373469929,1753017567262,917.01809853,0.00015945,2]
[373469930,1753017567606,458.50904927,0.00015945,2]
[373469931,1753017616684,1758.0,0.000164,2]
[373469933,1753017639129,160.22889375,0.000164,2]
[373469934,1753017733303,-1155.62386007,0.00016417,2]
[373469935,1753017733333,-300.0,0.00016436,2]
[373469936,1753017733365,-888.75227986,0.00016436,2]
[373469937,1753017733609,-311.24772014,0.00016436,2]
[373469938,1753017733641,-300.0,0.00016436,2]
[373469939,1753017733671,-300.0,0.00016437,2]
[373469940,1753017733702,-300.0,0.00016437,2]
[373469941,1753017733736,-1200.0,0.00016437,2]
[373469942,1753017733958,-300.0,0.00016437,2]
[373469943,1753017733988,-160.0,0.00016438,2]
[373469944,1753017734020,-460.0,0.00016438,2]
[373469945,1753017734052,-460.0,0.00016438,2]
[373469946,1753017734083,-461.94570617,0.00016438,2]
[373469947,1753017734113,-460.0,0.00016438,2]
[373469948,1753017734310,-460.0,0.00016438,2]
[373469949,1753017734341,-460.0,0.00016438,2]
[373469950,1753017734373,-460.0,0.00016438,2]
[373469951,1753017734405,-460.0,0.00016438,2]
[373469952,1753017734436,-460.0,0.00016438,2]
[373469953,1753017734658,-460.0,0.00016438,2]
[373469954,1753017734689,-460.0,0.00016438,2]
[373469955,1753017734719,-460.0,0.00016438,2]
[373469956,1753017734750,-460.0,0.00016438,2]
[373469957,1753017734780,-460.0,0.00016438,2]
[373469958,1753017735103,-460.0,0.00016438,2]
[373469959,1753017735134,-460.0,0.00016438,2]
[373469960,1753017735167,-460.0,0.00016438,2]
[373469961,1753017735197,-460.0,0.00016438,2]
[373469962,1753017735228,-460.0,0.00016438,2]
[373469963,1753017735380,-460.0,0.00016438,2]
[373469964,1753017735410,-460.0,0.00016438,2]
[373469965,1753017735439,-460.0,0.00016438,2]
[373469966,1753017735469,-460.0,0.00016438,2]
[373469967,1753017735499,-460.0,0.00016438,2]
[373469968,1753017735693,-460.0,0.00016438,2]
[373469969,1753017735728,-460.0,0.00016438,2]
[373469970,1753017735760,-460.0,0.00016438,2]
[373469971,1753017735789,-460.0,0.00016438,2]
[373469972,1753017735820,-460.0,0.00016438,2]
[373469973,1753017735993,-460.0,0.00016438,2]
[373469974,1753017736022,-465.27115641,0.00016438,2]
[373469975,1753017736052,-460.0,0.00016438,2]
[373469976,1753017736085,-460.0,0.00016438,2]
[373469977,1753017736120,-460.0,0.00016438,2]
[373469978,1753017736310,-460.0,0.00016438,2]
[373469979,1753017736341,-460.0,0.00016438,2]
[373469980,1753017736375,-461.01274665,0.00016438,2]
[373469981,1753017736406,-460.0,0.00016438,2]
[373469982,1753017736437,-460.0,0.00016438,2]
[373469983,1753017736630,-460.0,0.00016438,2]
[373469984,1753017736664,-460.0,0.00016438,2]
[373469985,1753017736697,-460.0,0.00016438,2]
[373469986,1753017736728,-460.0,0.00016438,2]
[373469987,1753017736758,-461.74376058,0.00016438,2]
[373469988,1753017737100,-460.0,0.00016438,2]
[373469989,1753017737132,-460.0,0.00016438,2]
[373469990,1753017737163,-460.0,0.00016438,2]
[373469991,1753017737193,-460.0,0.00016438,2]
[373469992,1753017737223,-460.0,0.00016438,2]
[373469993,1753017737468,-460.0,0.00016438,2]
[373469994,1753017737500,-468.35187788,0.00016438,2]
[373469995,1753017737530,-460.0,0.00016438,2]
[373469996,1753017737559,-460.0,0.00016438,2]
[373469997,1753017737587,-268.31091259,0.00016438,2]
[373469998,1753017737617,-306.67441906,0.00016438,2]
[373469999,1753017737763,-153.32558094,0.00016438,2]
[373470000,1753017737793,-460.0,0.00016438,2]
[373470001,1753017737824,-460.0,0.00016438,2]
[373470002,1753017737855,-460.0,0.00016438,2]
[373470003,1753017737887,-547.37,0.00016438,2]
[373470004,1753017737923,-378.60883812,0.00016438,2]
[373470005,1753017738139,-81.39116188,0.00016438,2]
[373470006,1753017738178,-460.0,0.00016438,2]
[373470007,1753017738218,-460.0,0.00016438,2]
[373470008,1753017738253,-460.0,0.00016438,2]
[373470009,1753017738289,-460.0,0.00016438,2]
[373470010,1753017738327,-460.0,0.00016438,2]
[373470011,1753017738609,-461.66446139,0.00016438,2]
[373470012,1753017738644,-460.0,0.00016438,2]
[373470013,1753017738680,-460.0,0.00016438,2]
[373470014,1753017738715,-460.0,0.00016438,2]
[373470015,1753017738751,-460.0,0.00016438,2]
[373470016,1753017738997,-502.58106593,0.00016438,2]
[373470017,1753017739030,-341.40142005,0.00016438,2]
[373470018,1753017739065,-460.0,0.00016438,2]
[373470019,1753017739253,-460.0,0.00016438,2]
[373470020,1753017739285,-460.0,0.00016438,2]
[373470021,1753017739316,-92.03502804,0.00016438,2]
[373470022,1753017739520,-367.96497196,0.00016438,2]
[373470023,1753017739549,-460.0,0.00016438,2]
[373470024,1753017739578,-460.0,0.00016438,2]
[373470025,1753017739606,-460.0,0.00016438,2]
[373470026,1753017739635,-463.73422717,0.00016438,2]
[373470027,1753017739663,-116.60160174,0.00016438,2]
[373470028,1753017739900,-343.39839826,0.00016438,2]
[373470029,1753017739929,-460.0,0.00016438,2]
[373470030,1753017739961,-460.0,0.00016438,2]
[373470031,1753017739991,-784.84,0.00016438,2]
[373470032,1753017740022,-443.52320348,0.00016438,2]
[373470033,1753017740224,-16.47679652,0.00016438,2]
[373470034,1753017740255,-460.0,0.00016438,2]
[373470035,1753017740285,-460.0,0.00016438,2]
[373470036,1753017740315,-460.0,0.00016438,2]
[373470037,1753017740346,-460.0,0.00016438,2]
[373470038,1753017740377,-460.0,0.00016438,2]
[373470039,1753017740575,-460.0,0.00016438,2]
[373470040,1753017740605,-460.0,0.00016438,2]
[373470041,1753017740634,-464.09468327,0.00016438,2]
[373470042,1753017740663,-460.0,0.00016438,2]
[373470043,1753017740692,-460.0,0.00016438,2]
[373470044,1753017740916,-460.0,0.00016438,2]
[373470045,1753017740946,-460.0,0.00016438,2]
[373470046,1753017740979,-210.78235737,0.00016438,2]
[373470047,1753017741009,-462.37227873,0.00016438,2]
[373470048,1753017741038,-500.0,0.00016438,2]
[373470049,1753017744066,-2000.05484764,0.00016438,2]
[373470050,1753017744309,-5000.0,0.00016438,2]
[373470051,1753017745137,-5000.0,0.00016438,2]
[373470052,1753017745441,-5000.0,0.00016438,2]
[373470053,1753017745747,-1751.55448218,0.00016438,2]
[373470054,1753017745779,-166.0,0.00016438,2]
[373470055,1753017746231,584.30089158,0.00016438,2]
[373470056,1753017748460,460.0,0.00016438,2]
[373470057,1753017750663,120.59014406,0.00016438,2]
[373470058,1753017750687,339.40985594,0.00016438,2]
[373470059,1753017755140,463.03956493,0.00016438,2]
[373470060,1753017755471,460.0,0.00016438,2]
[373470061,1753017756074,460.0,0.00016438,2]
[373470062,1753017756693,460.0,0.00016438,2]
[373470063,1753017760549,460.0,0.00016438,2]
[373470064,1753017761056,460.0,0.00016438,2]
[373470065,1753017765994,1897.55057913,0.0001645,2]
[373470066,1753017766019,3102.44942087,0.0001645,2]
[373470067,1753017766359,460.0,0.00016438,2]
[373470068,1753017768366,460.0,0.00016438,2]
[373470069,1753017769693,460.0,0.00016438,2]
[373470070,1753017770598,460.0,0.00016438,2]
[373470071,1753017771050,57.55057913,0.00016438,2]
[373470072,1753017771073,402.44942087,0.00016438,2]
[373470073,1753017775029,460.0,0.00016438,2]
[373470074,1753017780814,523.72608043,0.00016438,2]
[373470075,1753017782133,3613.8244987,0.0001645,2]
[373470076,1753017782158,1386.1755013,0.0001645,2]
[373470077,1753017782653,1379.38,0.00016438,2]
[373470078,1753017785017,763.45,0.00016438,2]
[373470079,1753017785240,763.45,0.00016438,2]
[373470080,1753017785478,707.5444987,0.00016438,2]
[373470081,1753017785503,55.9055013,0.00016438,2]
[373470082,1753017785708,763.45,0.00016438,2]
[373470083,1753017785944,763.45,0.00016438,2]
[373470084,1753017792029,461.80990544,0.00016438,2]
[373470085,1753017797603,2955.38459326,0.0001645,2]
[373470086,1753017797628,2012.74304869,0.0001645,2]
[373470087,1753017797787,460.0,0.00016438,2]
[373470088,1753017797996,460.0,0.00016438,2]
[373470089,1753017798703,950.22780331,0.00016415,2]
[373470090,1753017802631,380.00000001,0.00016438,2]
[373470091,1753017806144,460.0,0.00016438,2]
[373470092,1753017807502,277.02914799,0.00016438,2]
[373470093,1753017807529,182.97085201,0.00016438,2]
[373470094,1753017808934,460.0,0.00016438,2]
[373470095,1753017811464,460.0,0.00016438,2]
[373470096,1753017820451,460.0,0.00016438,2]
[373470097,1753017825518,460.0,0.00016438,2]
[373470098,1753017828556,460.0,0.00016438,2]
[373470099,1753017830538,460.0,0.00016438,2]
[373470100,1753017832919,981.87,0.00016438,2]
[373470101,1753017833884,500.0,0.00016438,2]
[373470102,1753017837583,460.0,0.00016438,2]
[373470103,1753017838545,115.15914799,0.00016438,2]
[373470104,1753017838570,344.84085201,0.00016438,2]
[373470105,1753017838928,460.0,0.00016438,2]
[373470106,1753017839067,460.0,0.00016438,2]
[373470107,1753017841542,1174.45,0.00016438,2]
[373470108,1753017853977,500.0,0.00016438,2]
[373470109,1753017854899,460.0,0.00016438,2]
[373470110,1753017855342,460.0,0.00016438,2]
[373470111,1753017858205,460.0,0.00016438,2]
[373470112,1753017859584,460.0,0.00016438,2]
[373470113,1753017860254,220.70914799,0.00016438,2]
[373470114,1753017868818,157.11215,0.00016012,2]
[373470115,1753017869160,588.15475136,0.00016018,2]
[373470116,1753017869641,455.64078938,0.00015514,2]
[373470117,1753017869664,656.15164002,0.00015514,2]
[373470121,1753017980256,1443.514488,0.000155,2]
[373470122,1753017984195,4159.4153474,0.000155,2]
[373470141,1753018040236,154.62392443,7.5e-07,2]
[373470144,1753018069023,196.88071133,0.00016336,2]
[373470145,1753018073978,196.88071132,0.00016337,2]
[373470146,1753018078960,196.88071132,0.00016338,2]
[373470151,1753018126268,10000.0,0.0001,2]
[373470152,1753018126300,1771.87881056,0.0001,2]
[373470157,1753018171356,368.60406581,0.00015945,2]
[373470158,1753018174661,1299.397289,0.00013699,2]
[373470159,1753018186557,251.90700175,0.00016316,2]
[373470161,1753018204620,6308.21283288,0.00015485,2]
[373470162,1753018204655,10000.0,0.00015485,2]
[373470163,1753018204688,8591.78716712,0.00015485,2]
[373470195,1753018238289,-924.49908808,0.00016416,2]
[373470196,1753018238299,-1200.0,0.00016437,2]
[373470197,1753018238308,-300.0,0.00016437,2]
[373470198,1753018238318,-300.0,0.00016437,2]
[373470199,1753018238327,-300.0,0.00016437,2]
[373470200,1753018238336,-300.0,0.00016437,2]
[373470201,1753018238346,-1200.0,0.00016437,2]
[373470202,1753018238356,-465.63112996,0.00016438,2]
[373470203,1753018238365,-460.0,0.00016438,2]
[373470204,1753018238375,-460.0,0.00016438,2]
[373470205,1753018238384,-460.0,0.00016438,2]
[373470206,1753018238394,-460.0,0.00016438,2]
[373470207,1753018238403,-460.0,0.00016438,2]
[373470208,1753018238413,-460.0,0.00016438,2]
[373470209,1753018238423,-460.0,0.00016438,2]
[373470210,1753018238433,-460.0,0.00016438,2]
[373470211,1753018238443,-460.0,0.00016438,2]
[373470212,1753018238453,-460.0,0.00016438,2]
[373470213,1753018238463,-460.0,0.00016438,2]
[373470214,1753018238472,-460.0,0.00016438,2]
[373470215,1753018238482,-460.0,0.00016438,2]
[373470216,1753018238491,-460.0,0.00016438,2]
[373470217,1753018238501,-462.40752101,0.00016438,2]
[373470218,1753018238510,-460.0,0.00016438,2]
[373470219,1753018238519,-460.0,0.00016438,2]
[373470220,1753018238528,-460.0,0.00016438,2]
[373470221,1753018238538,-460.0,0.00016438,2]
[373470222,1753018238548,-460.0,0.00016438,2]
[373470223,1753018238558,-460.0,0.00016438,2]
[373470224,1753018238567,-460.0,0.00016438,2]
[373470225,1753018238576,-460.0,0.00016438,2]
[373470226,1753018238585,-460.0,0.00016438,2]
[373470227,1753018238595,-460.0,0.00016438,2]
[373470228,1753018238604,-460.0,0.00016438,2]
[373470229,1753018238614,-460.0,0.00016438,2]
[373470230,1753018238623,-460.0,0.00016438,2]
[373470231,1753018238632,-460.0,0.00016438,2]
[373470232,1753018238642,-460.0,0.00016438,2]
[373470233,1753018238651,-460.0,0.00016438,2]
[373470234,1753018238662,-460.0,0.00016438,2]
[373470235,1753018238672,-460.0,0.00016438,2]
[373470236,1753018238684,-460.0,0.00016438,2]
[373470237,1753018238696,-460.0,0.00016438,2]
[373470238,1753018238706,-460.0,0.00016438,2]
[373470239,1753018238718,-460.0,0.00016438,2]
[373470240,1753018238727,-460.0,0.00016438,2]
[373470241,1753018238736,-460.0,0.00016438,2]
[373470242,1753018238746,-460.0,0.00016438,2]
[373470243,1753018238757,-460.0,0.00016438,2]
[373470244,1753018238767,-461.08649897,0.00016438,2]
[373470245,1753018238776,-460.0,0.00016438,2]
[373470246,1753018238786,-460.0,0.00016438,2]
[373470247,1753018238796,-460.0,0.00016438,2]
[373470248,1753018238805,-461.32688963,0.00016438,2]
[373470249,1753018238816,-460.0,0.00016438,2]
[373470250,1753018238826,-460.0,0.00016438,2]
[373470251,1753018238835,-460.0,0.00016438,2]
[373470252,1753018238844,-460.0,0.00016438,2]
[373470253,1753018238854,-475.28278986,0.00016438,2]
[373470254,1753018238863,-460.0,0.00016438,2]
[373470255,1753018238872,-460.0,0.00016438,2]
[373470256,1753018238882,-460.0,0.00016438,2]
[373470257,1753018238891,-460.0,0.00016438,2]
[373470258,1753018238902,-460.0,0.00016438,2]
[373470259,1753018238911,-462.92167506,0.00016438,2]
[373470260,1753018238921,-460.0,0.00016438,2]
[373470261,1753018238930,-460.0,0.00016438,2]
[373470262,1753018238939,-460.0,0.00016438,2]
[373470263,1753018238949,-461.39501885,0.00016438,2]
[373470264,1753018238958,-460.0,0.00016438,2]
[373470265,1753018238968,-460.0,0.00016438,2]
[373470266,1753018238978,-460.0,0.00016438,2]